[Event "IIe Tournoi de GMI du C'Chartres Echecs"]
[Site "Chartres, France"]
[Date "2021.05.19"]
[Round "5.2"]
[White "Milliet, Sophie"]
[Black "Dgebuadze, Alexandre"]
[Result "0-1"]
[TimeControl "5400+30"]
[WhiteTitle "IM"]
[BlackTitle "GM"]
[WhiteElo "2390"]
[BlackElo "2490"]

1. e4 {[%clk 01:30:57]} {[%emt 00:00:02]} e6 {[%clk 01:30:36]} {[%emt
00:00:24]} 2. d4 {[%clk 01:31:23]} {[%emt 00:00:04]} d5 {[%clk 01:31:02]}
{[%emt 00:00:04]} 3. Nc3 {[%clk 01:31:49]} {[%emt 00:00:04]} Bb4 {[%clk
01:31:23]} {[%emt 00:00:09]} 4. e5 {[%clk 01:32:12]} {[%emt 00:00:07]} Ne7
{[%clk 01:31:45]} {[%emt 00:00:07]} 5. a3 {[%clk 01:32:36]} {[%emt 00:00:07]}
Bxc3+ {[%clk 01:32:10]} {[%emt 00:00:05]} 6. bxc3 {[%clk 01:33:03]} {[%emt
00:00:03]} c5 {[%clk 01:32:34]} {[%emt 00:00:05]} 7. Qg4 {[%clk 01:33:11]}
{[%emt 00:00:22]} O-O {[%clk 01:32:55]} {[%emt 00:00:09]} 8. Bd3 {[%clk
01:33:36]} {[%emt 00:00:06]} Nbc6 {[%clk 01:33:14]} {[%emt 00:00:11]} 9. Bg5
{[%clk 01:33:54]} {[%emt 00:00:12]} Qa5 {[%clk 01:25:32]} {[%emt 00:08:12]} 10.
Ne2 {[%clk 01:34:15]} {[%emt 00:00:09]} Ng6 {[%clk 01:25:52]} {[%emt 00:00:10]}
11. h4 {[%clk 01:33:57]} {[%emt 00:00:48]} Nxd4 {[%clk 01:13:59]} {[%emt
00:12:23]} 12. f4 {[%clk 01:08:29]} {[%emt 00:25:59]} Nxe2 {[%clk 01:03:37]}
{[%emt 00:10:52]} 13. Kxe2 {[%clk 01:04:26]} {[%emt 00:04:33]} f5 {[%clk
01:00:37]} {[%emt 00:03:29]} 14. exf6 {[%clk 01:00:59]} {[%emt 00:03:57]} e5
{[%clk 01:00:45]} {[%emt 00:00:21]} 15. Bf5 {[%clk 01:00:35]} {[%emt 00:00:54]}
Bxf5 {[%clk 00:56:48]} {[%emt 00:04:27]} 16. Qxf5 {[%clk 01:01:03]} {[%emt
00:00:03]} Rae8 {[%clk 00:57:00]} {[%emt 00:00:18]} 17. Qd7 {[%clk 00:59:33]}
{[%emt 00:02:00]} gxf6 {[%clk 00:51:25]} {[%emt 00:06:04]} 18. Bh6 {[%clk
00:57:52]} {[%emt 00:02:11]} Re7 {[%clk 00:51:21]} {[%emt 00:00:34]} 19. Qxd5+
{[%clk 00:57:52]} {[%emt 00:00:30]} Rff7 {[%clk 00:41:48]} {[%emt 00:10:03]} 20.
Rh3 {[%clk 00:52:27]} {[%emt 00:05:55]} Nxf4+ {[%clk 00:38:24]} {[%emt
00:03:54]} 21. Bxf4 {[%clk 00:52:54]} {[%emt 00:00:03]} exf4+ {[%clk 00:38:49]}
{[%emt 00:00:05]} 22. Kf2 {[%clk 00:51:16]} {[%emt 00:02:08]} Qa4 {[%clk
00:35:17]} {[%emt 00:04:02]} 23. Qf5 {[%clk 00:45:44]} {[%emt 00:06:03]} Re5
{[%clk 00:32:29]} {[%emt 00:03:18]} 24. Qc8+ {[%clk 00:44:04]} {[%emt
00:02:11]} Re8 {[%clk 00:27:08]} {[%emt 00:05:50]} 25. Qf5 {[%clk 00:44:08]}
{[%emt 00:00:26]} Rfe7 {[%clk 00:23:44]} {[%emt 00:03:54]} 26. Kg1 {[%clk
00:42:21]} {[%emt 00:02:17]} Qe4 {[%clk 00:20:48]} {[%emt 00:03:26]} 27. Qxc5
{[%clk 00:39:58]} {[%emt 00:02:53]} Rg7 {[%clk 00:20:40]} {[%emt 00:00:38]} 28.
Qf2 {[%clk 00:40:15]} {[%emt 00:00:14]} Kh8 {[%clk 00:19:59]} {[%emt 00:01:10]}
29. Rf1 {[%clk 00:12:12]} {[%emt 00:28:33]} Reg8 {[%clk 00:20:16]} {[%emt
00:00:12]} 30. Rh2 {[%clk 00:12:29]} {[%emt 00:00:13]} Rg3 {[%clk 00:16:59]}
{[%emt 00:03:46]} 31. Kh1 {[%clk 00:08:40]} {[%emt 00:04:20]} Re3 {[%clk
00:09:49]} {[%emt 00:07:40]} 32. h5 {[%clk 00:06:51]} {[%emt 00:02:20]} Rgg3
{[%clk 00:01:52]} {[%emt 00:08:23]} 33. Rg1 {[%clk 00:03:32]} {[%emt 00:03:53]}
Re2 {[%clk 00:01:05]} {[%emt 00:01:16]} 34. Qc5 {[%clk 00:03:56]} {[%emt
00:00:06]} Rg8 {[%clk 00:00:49]} {[%emt 00:00:46]} 35. Qd6 {[%clk 00:02:26]}
{[%emt 00:02:01]} Qe5 {[%clk 00:00:58]} {[%emt 00:00:21]} 36. Qxe5 {[%clk
00:01:20]} {[%emt 00:01:36]} fxe5 {[%clk 00:01:22]} {[%emt 00:00:05]} 37. g4
{[%clk 00:01:45]} {[%emt 00:00:05]} Re3 {[%clk 00:01:09]} {[%emt 00:00:43]} 38.
g5 {[%clk 00:00:32]} {[%emt 00:01:43]} f3 {[%clk 00:01:11]} {[%emt 00:00:29]}
39. Rd2 {[%clk 00:00:32]} {[%emt 00:00:30]} Re4 {[%clk 00:00:55]} {[%emt
00:00:45]} 40. h6 {[%clk 00:00:33]} {[%emt 00:00:30]} Rh4+ {[%clk 00:01:06]}
{[%emt 00:00:19]} 41. Rh2 {[%clk 00:01:00]} {[%emt 00:00:03]} Rf4 {[%clk
00:01:30]} {[%emt 00:00:06]} 42. Rd1 {[%clk 00:00:32]} {[%emt 00:00:59]} e4
{[%clk 00:01:14]} {[%emt 00:00:46]} 43. Kg1 {[%clk 00:00:31]} {[%emt 00:00:31]}
e3 {[%clk 00:01:31]} {[%emt 00:00:12]} 44. Rd5 {[%clk 00:00:33]} {[%emt
00:00:28]} f2+ {[%clk 00:01:40]} {[%emt 00:00:20]} 45. Kf1 {[%clk 00:01:00]}
{[%emt 00:00:04]} e2+ {[%clk 00:02:03]} {[%emt 00:00:07]} 0-1

[Event "IIe Tournoi de GMI du C'Chartres Echecs"]
[Site "Chartres, France"]
[Date "2021.05.19"]
[Round "5.3"]
[White "Stephan, Victor"]
[Black "Maurizzi, Marc Andria"]
[Result "0-1"]
[TimeControl "5400+30"]
[WhiteTitle "IM"]
[BlackTitle "IM"]
[WhiteElo "2430"]
[BlackElo "2489"]

1. d4 {[%clk 01:30:56]} {[%emt 00:00:03]} Nf6 {[%clk 01:30:48]} {[%emt
00:00:13]} 2. c4 {[%clk 01:31:15]} {[%emt 00:00:10]} e6 {[%clk 01:31:04]}
{[%emt 00:00:14]} 3. Nc3 {[%clk 01:31:15]} {[%emt 00:00:29]} Bb4 {[%clk
01:31:26]} {[%emt 00:00:09]} 4. Qc2 {[%clk 01:31:07]} {[%emt 00:00:38]} b6
{[%clk 01:31:14]} {[%emt 00:00:42]} 5. Nf3 {[%clk 01:27:05]} {[%emt 00:04:30]}
Bb7 {[%clk 01:31:27]} {[%emt 00:00:19]} 6. g3 {[%clk 01:27:17]} {[%emt
00:00:18]} c5 {[%clk 01:15:41]} {[%emt 00:16:16]} 7. dxc5 {[%clk 01:23:39]}
{[%emt 00:04:08]} Bxc5 {[%clk 01:12:01]} {[%emt 00:04:10]} 8. Bg2 {[%clk
01:23:36]} {[%emt 00:00:32]} O-O {[%clk 01:11:31]} {[%emt 00:01:00]} 9. O-O
{[%clk 01:21:19]} {[%emt 00:02:47]} Nc6 {[%clk 01:09:48]} {[%emt 00:02:14]} 10.
Rd1 {[%clk 01:14:26]} {[%emt 00:07:22]} Ng4 {[%clk 01:02:43]} {[%emt 00:07:36]}
11. e3 {[%clk 01:12:31]} {[%emt 00:02:24]} f5 {[%clk 00:56:59]} {[%emt
00:06:16]} 12. a3 {[%clk 01:07:59]} {[%emt 00:05:01]} a5 {[%clk 00:54:11]}
{[%emt 00:03:19]} 13. Na4 {[%clk 01:02:59]} {[%emt 00:05:29]} Qc7 {[%clk
00:49:04]} {[%emt 00:05:36]} 14. Nxc5 {[%clk 00:49:54]} {[%emt 00:13:35]} bxc5
{[%clk 00:49:32]} {[%emt 00:00:03]} 15. Qc3 {[%clk 00:48:10]} {[%emt 00:02:14]}
d6 {[%clk 00:39:43]} {[%emt 00:10:19]} 16. b3 {[%clk 00:43:45]} {[%emt
00:04:55]} Nce5 {[%clk 00:32:38]} {[%emt 00:07:36]} 17. Ne1 {[%clk 00:43:20]}
{[%emt 00:00:55]} Bxg2 {[%clk 00:31:46]} {[%emt 00:01:22]} 18. Kxg2 {[%clk
00:43:17]} {[%emt 00:00:32]} Qc6+ {[%clk 00:29:28]} {[%emt 00:02:48]} 19. f3
{[%clk 00:39:13]} {[%emt 00:04:34]} Nxh2 {[%clk 00:12:40]} {[%emt 00:17:18]} 20.
Kxh2 {[%clk 00:31:29]} {[%emt 00:08:15]} Nxf3+ {[%clk 00:13:07]} {[%emt
00:00:04]} 21. Nxf3 {[%clk 00:30:35]} {[%emt 00:01:23]} Qxf3 {[%clk 00:13:34]}
{[%emt 00:00:03]} 22. Rg1 {[%clk 00:24:28]} {[%emt 00:06:36]} Rf6 {[%clk
00:10:45]} {[%emt 00:03:20]} 23. Rg2 {[%clk 00:24:52]} {[%emt 00:00:06]} Rh6+
{[%clk 00:11:05]} {[%emt 00:00:10]} 24. Kg1 {[%clk 00:25:14]} {[%emt 00:00:07]}
Qd1+ {[%clk 00:11:31]} {[%emt 00:00:04]} 25. Kf2 {[%clk 00:25:39]} {[%emt
00:00:05]} Rh1 {[%clk 00:11:56]} {[%emt 00:00:05]} 26. Qxg7+ {[%clk 00:20:42]}
{[%emt 00:05:27]} Kxg7 {[%clk 00:12:24]} {[%emt 00:00:03]} 27. Bb2+ {[%clk
00:21:06]} {[%emt 00:00:06]} e5 {[%clk 00:12:38]} {[%emt 00:00:16]} 28. Rxd1
{[%clk 00:21:30]} {[%emt 00:00:06]} Rxd1 {[%clk 00:13:05]} {[%emt 00:00:03]} 29.
Ke2 {[%clk 00:21:55]} {[%emt 00:00:06]} Rb1 {[%clk 00:12:36]} {[%emt 00:00:58]}
30. Kd3 {[%clk 00:22:20]} {[%emt 00:00:05]} Kf6 {[%clk 00:10:14]} {[%emt
00:02:52]} 31. Kc2 {[%clk 00:22:05]} {[%emt 00:00:45]} Re1 {[%clk 00:10:16]}
{[%emt 00:00:28]} 32. Kd2 {[%clk 00:21:16]} {[%emt 00:01:19]} Rh1 {[%clk
00:10:02]} {[%emt 00:00:44]} 33. Bc3 {[%clk 00:21:37]} {[%emt 00:00:09]} h5
{[%clk 00:10:08]} {[%emt 00:00:25]} 34. Kd3 {[%clk 00:21:04]} {[%emt 00:01:03]}
Ke6 {[%clk 00:10:06]} {[%emt 00:00:32]} 35. e4 {[%clk 00:21:08]} {[%emt
00:00:25]} fxe4+ {[%clk 00:10:18]} {[%emt 00:00:19]} 36. Kxe4 {[%clk 00:21:33]}
{[%emt 00:00:04]} Rb1 {[%clk 00:09:52]} {[%emt 00:00:55]} 0-1

[Event "IIe Tournoi de GMI du C'Chartres Echecs"]
[Site "Chartres, France"]
[Date "2021.05.19"]
[Round "5.4"]
[White "David, Alberto"]
[Black "Shirazi, Kamran"]
[Result "1-0"]
[TimeControl "5400+30"]
[WhiteTitle "GM"]
[BlackTitle "IM"]
[WhiteElo "2517"]
[BlackElo "2349"]

1. d4 {[%clk 01:30:55]} {[%emt 00:00:03]} Nf6 {[%clk 01:25:11]} {[%emt
00:05:50]} 2. c4 {[%clk 01:31:11]} {[%emt 00:00:14]} c6 {[%clk 01:24:38]}
{[%emt 00:01:03]} 3. Nc3 {[%clk 01:30:04]} {[%emt 00:01:37]} d5 {[%clk
01:25:03]} {[%emt 00:00:04]} 4. Nf3 {[%clk 01:29:32]} {[%emt 00:01:02]} g6
{[%clk 01:25:11]} {[%emt 00:00:22]} 5. e3 {[%clk 01:18:53]} {[%emt 00:11:09]}
Bg7 {[%clk 01:25:29]} {[%emt 00:00:13]} 6. Bd3 {[%clk 01:18:11]} {[%emt
00:01:11]} O-O {[%clk 01:24:53]} {[%emt 00:01:05]} 7. O-O {[%clk 01:18:19]}
{[%emt 00:00:22]} b6 {[%clk 01:07:40]} {[%emt 00:17:44]} 8. Qe2 {[%clk
01:11:12]} {[%emt 00:07:36]} Bb7 {[%clk 01:05:32]} {[%emt 00:02:38]} 9. Rd1
{[%clk 01:08:12]} {[%emt 00:03:30]} Qc8 {[%clk 01:03:04]} {[%emt 00:02:58]} 10.
e4 {[%clk 01:01:45]} {[%emt 00:06:57]} dxe4 {[%clk 01:02:53]} {[%emt 00:00:42]}
11. Nxe4 {[%clk 01:02:09]} {[%emt 00:00:06]} Nbd7 {[%clk 01:03:06]} {[%emt
00:00:17]} 12. Neg5 {[%clk 00:38:15]} {[%emt 00:24:23]} e6 {[%clk 01:01:11]}
{[%emt 00:02:25]} 13. Bf4 {[%clk 00:35:33]} {[%emt 00:03:12]} c5 {[%clk
00:59:16]} {[%emt 00:02:26]} 14. Bd6 {[%clk 00:35:06]} {[%emt 00:00:56]} Bxf3
{[%clk 00:58:42]} {[%emt 00:01:03]} 15. Nxf3 {[%clk 00:29:33]} {[%emt
00:06:03]} Re8 {[%clk 00:58:59]} {[%emt 00:00:14]} 16. dxc5 {[%clk 00:24:54]}
{[%emt 00:05:09]} e5 {[%clk 00:58:58]} {[%emt 00:00:31]} 17. Bc2 {[%clk
00:17:15]} {[%emt 00:08:09]} Nxc5 {[%clk 00:56:39]} {[%emt 00:02:49]} 18. b4
{[%clk 00:14:02]} {[%emt 00:03:43]} Nb7 {[%clk 00:53:18]} {[%emt 00:03:52]} 19.
c5 {[%clk 00:10:52]} {[%emt 00:03:40]} bxc5 {[%clk 00:50:23]} {[%emt 00:03:25]}
20. bxc5 {[%clk 00:11:18]} {[%emt 00:00:04]} e4 {[%clk 00:50:16]} {[%emt
00:00:37]} 21. Ng5 {[%clk 00:09:17]} {[%emt 00:02:30]} Qf5 {[%clk 00:45:22]}
{[%emt 00:05:24]} 22. Nxf7 {[%clk 00:08:30]} {[%emt 00:01:17]} Nxc5 {[%clk
00:44:45]} {[%emt 00:01:07]} 23. Bxc5 {[%clk 00:07:08]} {[%emt 00:01:52]} Qxc5
{[%clk 00:45:10]} {[%emt 00:00:06]} 24. Bb3 {[%clk 00:07:32]} {[%emt 00:00:06]}
e3 {[%clk 00:43:26]} {[%emt 00:02:14]} 25. f4 {[%clk 00:03:01]} {[%emt
00:05:00]} Ne4 {[%clk 00:36:58]} {[%emt 00:06:59]} 26. Ne5+ {[%clk 00:01:51]}
{[%emt 00:01:40]} Kh8 {[%clk 00:37:18]} {[%emt 00:00:09]} 27. Nf7+ {[%clk
00:02:14]} {[%emt 00:00:08]} Kg8 {[%clk 00:37:44]} {[%emt 00:00:04]} 28. Ng5+
{[%clk 00:00:39]} {[%emt 00:02:05]} Kh8 {[%clk 00:37:50]} {[%emt 00:00:24]} 29.
Nxe4 {[%clk 00:00:33]} {[%emt 00:00:36]} Rxe4 {[%clk 00:38:09]} {[%emt
00:00:11]} 30. Rac1 {[%clk 00:01:01]} {[%emt 00:00:03]} Qb6 {[%clk 00:36:11]}
{[%emt 00:02:28]} 31. Bd5 {[%clk 00:01:23]} {[%emt 00:00:08]} Rb4 {[%clk
00:24:09]} {[%emt 00:12:32]} 32. Bxa8 {[%clk 00:01:22]} {[%emt 00:00:32]} Rb2
{[%clk 00:24:36]} {[%emt 00:00:02]} 33. Rc8+ {[%clk 00:00:38]} {[%emt
00:01:13]} Bf8 {[%clk 00:25:04]} {[%emt 00:00:02]} 34. Rxf8+ {[%clk 00:00:50]}
{[%emt 00:00:18]} Kg7 {[%clk 00:25:31]} {[%emt 00:00:03]} 35. Rb8 {[%clk
00:00:51]} {[%emt 00:00:29]} 1-0

[Event "IIe Tournoi de GMI du C'Chartres Echecs"]
[Site "Chartres, France"]
[Date "2021.05.19"]
[Round "5.5"]
[White "Duboue, Peio"]
[Black "Vlachos, Anatole"]
[Result "1-0"]
[TimeControl "5400+30"]
[WhiteTitle "FM"]
[BlackTitle "IM"]
[WhiteElo "2431"]
[BlackElo "2438"]

1. e4 {[%clk 01:30:58]} {[%emt 00:00:02]} e5 {[%clk 01:30:55]} {[%emt
00:00:05]} 2. Nf3 {[%clk 01:31:24]} {[%emt 00:00:03]} Nc6 {[%clk 01:31:22]}
{[%emt 00:00:04]} 3. Bb5 {[%clk 01:31:50]} {[%emt 00:00:03]} a6 {[%clk
01:31:37]} {[%emt 00:00:15]} 4. Bxc6 {[%clk 01:32:17]} {[%emt 00:00:03]} dxc6
{[%clk 01:32:00]} {[%emt 00:00:07]} 5. O-O {[%clk 01:32:43]} {[%emt 00:00:04]}
Bg4 {[%clk 01:31:45]} {[%emt 00:00:44]} 6. h3 {[%clk 01:33:10]} {[%emt
00:00:03]} h5 {[%clk 01:32:10]} {[%emt 00:00:05]} 7. d3 {[%clk 01:33:38]}
{[%emt 00:00:03]} Qf6 {[%clk 01:32:28]} {[%emt 00:00:11]} 8. Be3 {[%clk
01:34:06]} {[%emt 00:00:03]} Bxf3 {[%clk 01:32:48]} {[%emt 00:00:10]} 9. Qxf3
{[%clk 01:34:32]} {[%emt 00:00:03]} Qxf3 {[%clk 01:33:11]} {[%emt 00:00:07]} 10.
gxf3 {[%clk 01:35:00]} {[%emt 00:00:02]} Bd6 {[%clk 01:33:27]} {[%emt
00:00:14]} 11. Nd2 {[%clk 01:35:14]} {[%emt 00:00:16]} Ne7 {[%clk 01:33:29]}
{[%emt 00:00:27]} 12. Rfd1 {[%clk 01:35:32]} {[%emt 00:00:13]} c5 {[%clk
01:32:19]} {[%emt 00:01:39]} 13. Kf1 {[%clk 01:34:52]} {[%emt 00:01:11]} Nc6
{[%clk 01:30:54]} {[%emt 00:01:55]} 14. c3 {[%clk 01:35:10]} {[%emt 00:00:13]}
O-O-O {[%clk 01:29:07]} {[%emt 00:02:17]} 15. Ke2 {[%clk 01:31:46]} {[%emt
00:03:54]} b6 {[%clk 01:28:56]} {[%emt 00:00:40]} 16. Nc4 {[%clk 01:30:46]}
{[%emt 00:01:30]} a5 {[%clk 01:22:08]} {[%emt 00:07:18]} 17. Rg1 {[%clk
01:29:44]} {[%emt 00:01:32]} g6 {[%clk 01:21:19]} {[%emt 00:01:20]} 18. Rad1
{[%clk 01:19:38]} {[%emt 00:10:36]} a4 {[%clk 01:09:58]} {[%emt 00:11:51]} 19.
Bc1 {[%clk 01:15:31]} {[%emt 00:04:36]} Rhe8 {[%clk 01:04:58]} {[%emt
00:05:30]} 20. Ne3 {[%clk 01:14:18]} {[%emt 00:01:43]} Bf8 {[%clk 01:04:27]}
{[%emt 00:01:01]} 21. Nd5 {[%clk 01:12:35]} {[%emt 00:02:14]} Bg7 {[%clk
01:03:57]} {[%emt 00:00:59]} 22. Be3 {[%clk 01:03:33]} {[%emt 00:09:31]} Kb7
{[%clk 01:02:59]} {[%emt 00:01:29]} 23. Kd2 {[%clk 01:02:25]} {[%emt 00:01:38]}
Na5 {[%clk 01:00:09]} {[%emt 00:03:19]} 24. Bg5 {[%clk 01:01:28]} {[%emt
00:01:27]} Rd6 {[%clk 00:59:50]} {[%emt 00:00:47]} 25. Kc2 {[%clk 00:47:49]}
{[%emt 00:14:12]} c6 {[%clk 00:59:22]} {[%emt 00:00:58]} 26. Ne3 {[%clk
00:48:14]} {[%emt 00:00:06]} Rd7 {[%clk 00:53:13]} {[%emt 00:06:42]} 27. Ng2
{[%clk 00:42:37]} {[%emt 00:06:04]} Kc8 {[%clk 00:43:18]} {[%emt 00:10:25]} 28.
b3 {[%clk 00:41:52]} {[%emt 00:01:15]} Ra7 {[%clk 00:40:13]} {[%emt 00:03:35]}
29. Rb1 {[%clk 00:29:23]} {[%emt 00:12:59]} Nb7 {[%clk 00:37:35]} {[%emt
00:03:08]} 30. b4 {[%clk 00:29:41]} {[%emt 00:00:12]} cxb4 {[%clk 00:37:07]}
{[%emt 00:00:58]} 31. Rxb4 {[%clk 00:30:06]} {[%emt 00:00:06]} b5 {[%clk
00:34:49]} {[%emt 00:02:48]} 32. Be3 {[%clk 00:28:54]} {[%emt 00:01:41]} Ra8
{[%clk 00:31:12]} {[%emt 00:04:07]} 33. f4 {[%clk 00:29:04]} {[%emt 00:00:20]}
Bf8 {[%clk 00:30:41]} {[%emt 00:01:01]} 34. Rbb1 {[%clk 00:29:26]} {[%emt
00:00:08]} exf4 {[%clk 00:30:45]} {[%emt 00:00:25]} 35. Nxf4 {[%clk 00:29:49]}
{[%emt 00:00:07]} Rb8 {[%clk 00:29:54]} {[%emt 00:01:22]} 36. Ne2 {[%clk
00:29:11]} {[%emt 00:01:08]} Na5 {[%clk 00:28:36]} {[%emt 00:01:47]} 37. f4
{[%clk 00:28:10]} {[%emt 00:01:31]} Kb7 {[%clk 00:26:20]} {[%emt 00:02:45]} 38.
Rbf1 {[%clk 00:26:12]} {[%emt 00:02:29]} Bh6 {[%clk 00:20:40]} {[%emt
00:06:10]} 39. Bd2 {[%clk 00:25:21]} {[%emt 00:01:21]} Ka6 {[%clk 00:19:54]}
{[%emt 00:01:15]} 40. f5 {[%clk 00:25:31]} {[%emt 00:00:21]} Bxd2 {[%clk
00:20:14]} {[%emt 00:00:11]} 41. Kxd2 {[%clk 00:25:58]} {[%emt 00:00:03]} b4
{[%clk 00:18:56]} {[%emt 00:01:47]} 42. fxg6 {[%clk 00:26:00]} {[%emt
00:00:28]} fxg6 {[%clk 00:19:17]} {[%emt 00:00:09]} 43. cxb4 {[%clk 00:24:18]}
{[%emt 00:02:12]} Rxb4 {[%clk 00:19:14]} {[%emt 00:00:33]} 44. Kc3 {[%clk
00:23:58]} {[%emt 00:00:50]} Reb8 {[%clk 00:19:34]} {[%emt 00:00:09]} 45. Rxg6
{[%clk 00:21:25]} {[%emt 00:03:04]} Rb2 {[%clk 00:19:58]} {[%emt 00:00:06]} 46.
Rg8 {[%clk 00:18:05]} {[%emt 00:03:50]} Rxg8 {[%clk 00:18:41]} {[%emt
00:01:47]} 47. Kxb2 {[%clk 00:18:32]} {[%emt 00:00:03]} Rg2 {[%clk 00:18:42]}
{[%emt 00:00:28]} 48. Re1 {[%clk 00:19:00]} {[%emt 00:00:02]} Rh2 {[%clk
00:19:03]} {[%emt 00:00:09]} 49. Kc3 {[%clk 00:18:35]} {[%emt 00:00:56]} Rxh3
{[%clk 00:17:19]} {[%emt 00:02:14]} 50. e5 {[%clk 00:18:59]} {[%emt 00:00:06]}
Nb7 {[%clk 00:17:16]} {[%emt 00:00:33]} 51. Nd4 {[%clk 00:16:57]} {[%emt
00:02:32]} c5 {[%clk 00:14:03]} {[%emt 00:03:43]} 52. Nf5 {[%clk 00:17:22]}
{[%emt 00:00:05]} Rf3 {[%clk 00:14:03]} {[%emt 00:00:27]} 53. Ng7 {[%clk
00:17:28]} {[%emt 00:00:27]} Rf7 {[%clk 00:10:48]} {[%emt 00:03:45]} 54. Nxh5
{[%clk 00:17:53]} {[%emt 00:00:05]} Kb5 {[%clk 00:10:53]} {[%emt 00:00:24]} 55.
Nf6 {[%clk 00:15:44]} {[%emt 00:02:40]} Kc6 {[%clk 00:08:02]} {[%emt 00:03:21]}
56. d4 {[%clk 00:16:01]} {[%emt 00:00:13]} cxd4+ {[%clk 00:07:47]} {[%emt
00:00:46]} 57. Kxd4 {[%clk 00:16:27]} {[%emt 00:00:04]} Nd8 {[%clk 00:07:45]}
{[%emt 00:00:31]} 58. Rc1+ {[%clk 00:16:48]} {[%emt 00:00:10]} Kb5 {[%clk
00:06:09]} {[%emt 00:02:05]} 59. a3 {[%clk 00:17:15]} {[%emt 00:00:04]} Rg7
{[%clk 00:05:30]} {[%emt 00:01:08]} 60. Ne4 {[%clk 00:14:31]} {[%emt 00:03:14]}
Ne6+ {[%clk 00:04:45]} {[%emt 00:01:15]} 61. Kd5 {[%clk 00:14:44]} {[%emt
00:00:17]} Nf4 {[%clk 00:05:10]} {[%emt 00:00:05]} 62. Kd6 {[%clk 00:15:00]}
{[%emt 00:00:14]} Rg6+ {[%clk 00:05:38]} {[%emt 00:00:03]} 63. Nf6 {[%clk
00:12:39]} {[%emt 00:02:51]} Rg3 {[%clk 00:05:43]} {[%emt 00:00:24]} 64. Rc5+
{[%clk 00:12:48]} {[%emt 00:00:21]} Ka6 {[%clk 00:05:24]} {[%emt 00:00:48]} 65.
Rc4 {[%clk 00:12:41]} {[%emt 00:00:39]} Ng6 {[%clk 00:04:36]} {[%emt 00:01:18]}
66. Rxa4+ {[%clk 00:12:13]} {[%emt 00:00:59]} Kb5 {[%clk 00:05:05]} {[%emt
00:00:01]} 67. Ra8 {[%clk 00:11:40]} {[%emt 00:01:03]} Rd3+ {[%clk 00:04:39]}
{[%emt 00:00:55]} 68. Ke6 {[%clk 00:12:08]} {[%emt 00:00:02]} Kc6 {[%clk
00:03:41]} {[%emt 00:01:26]} 69. a4 {[%clk 00:09:36]} {[%emt 00:03:05]} Rd4
{[%clk 00:03:02]} {[%emt 00:01:09]} 70. Ne8 {[%clk 00:03:31]} {[%emt 00:06:35]}
Kb7 {[%clk 00:03:09]} {[%emt 00:00:23]} 71. Ra5 {[%clk 00:03:59]} {[%emt
00:00:02]} Kb6 {[%clk 00:03:29]} {[%emt 00:00:10]} 72. Rb5+ {[%clk 00:04:24]}
{[%emt 00:00:05]} Kc6 {[%clk 00:03:47]} {[%emt 00:00:07]} 73. Ra5 {[%clk
00:01:09]} {[%emt 00:03:50]} Kb6 {[%clk 00:04:16]} {[%emt 00:00:01]} 74. Rb5+
{[%clk 00:01:25]} {[%emt 00:00:14]} Kc6 {[%clk 00:04:45]} 75. Rb1 {[%clk
00:01:34]} {[%emt 00:00:21]} Rxa4 {[%clk 00:04:59]} {[%emt 00:00:16]} 76. Nd6
{[%clk 00:02:03]} Nxe5 {[%clk 00:04:59]} {[%emt 00:00:30]} 77. Kxe5 {[%clk
00:02:31]} {[%emt 00:00:02]} Ra2 {[%clk 00:05:12]} {[%emt 00:00:16]} 78. Ne4
{[%clk 00:02:47]} {[%emt 00:00:15]} Rc2 {[%clk 00:05:09]} {[%emt 00:00:32]} 79.
Rb8 {[%clk 00:03:11]} {[%emt 00:00:08]} Kc7 {[%clk 00:05:30]} {[%emt 00:00:07]}
80. Rh8 {[%clk 00:03:34]} {[%emt 00:00:07]} Rc6 {[%clk 00:05:05]} {[%emt
00:00:53]} 81. Kd5 {[%clk 00:03:51]} {[%emt 00:00:15]} Rg6 {[%clk 00:05:09]}
{[%emt 00:00:24]} 82. Rh1 {[%clk 00:03:26]} {[%emt 00:00:57]} Rg2 {[%clk
00:05:05]} {[%emt 00:00:34]} 83. Rh7+ {[%clk 00:03:36]} {[%emt 00:00:19]} Kb6
{[%clk 00:05:22]} {[%emt 00:00:12]} 84. Rh6+ {[%clk 00:04:05]} {[%emt
00:00:03]} Kc7 {[%clk 00:05:36]} {[%emt 00:00:14]} 85. Rc6+ {[%clk 00:04:27]}
{[%emt 00:00:10]} Kd7 {[%clk 00:05:24]} {[%emt 00:00:39]} 86. Rc1 {[%clk
00:04:56]} {[%emt 00:00:04]} Rg6 {[%clk 00:05:19]} {[%emt 00:00:33]} 87. Nc5+
{[%clk 00:02:38]} {[%emt 00:02:49]} Ke7 {[%clk 00:05:43]} {[%emt 00:00:07]} 88.
Re1+ {[%clk 00:03:07]} {[%emt 00:00:01]} Kf7 {[%clk 00:05:58]} {[%emt
00:00:12]} 89. Nd7 {[%clk 00:02:49]} {[%emt 00:00:52]} Rg5+ {[%clk 00:05:04]}
{[%emt 00:01:23]} 90. Ne5+ {[%clk 00:03:13]} {[%emt 00:00:05]} Ke7 {[%clk
00:05:27]} {[%emt 00:00:06]} 91. Ra1 {[%clk 00:03:10]} {[%emt 00:00:35]} Rh5
{[%clk 00:03:54]} {[%emt 00:02:02]} 92. Ra7+ {[%clk 00:03:33]} {[%emt
00:00:08]} Ke8 {[%clk 00:03:54]} {[%emt 00:00:29]} 93. Rg7 {[%clk 00:02:46]}
{[%emt 00:01:18]} Rh6 {[%clk 00:03:09]} {[%emt 00:01:13]} 94. Nc4 {[%clk
00:01:58]} {[%emt 00:01:20]} Kd8 {[%clk 00:02:29]} {[%emt 00:01:10]} 95. Ra7
{[%clk 00:01:33]} {[%emt 00:00:55]} Ke8 {[%clk 00:01:37]} {[%emt 00:01:21]} 96.
Nd6+ {[%clk 00:02:02]} {[%emt 00:00:02]} 1-0